bitfinex-derivatives/quotes_BNBF0:USTF0_20250608
["timestamp","ask_amount","ask_price","bid_price","bid_amount"]
[1749397672848,0.26692746,652.08,651.78,2.29115619]
[1749397673152,0.26692746,652.08,651.33,3.83536224]
[1749397673153,0.26692746,652.08,651.77,2.29115619]
[1749397674750,0.26692746,652.08,651.68,2.29115619]
[1749397675452,0.862,652.07,651.68,2.29115619]
[1749397678650,0.862,652.07,651.69,2.29115619]
[1749397682455,0.862,652.07,651.7,2.29115619]
[1749397683256,0.862,652.07,651.71,2.29115619]
[1749397684661,0.862,652.07,651.8,2.29115619]
[1749397685359,0.862,652.07,651.81,2.29115619]
[1749397688661,0.862,652.07,651.82,2.29115619]
[1749397690260,0.862,652.07,651.83,2.29115619]
[1749397690460,0.26692746,652.08,651.83,2.29115619]
[1749397690758,0.26692746,652.08,651.82,2.29115619]
[1749397691364,0.26692746,652.08,651.83,2.29115619]
[1749397692063,0.26692746,652.08,651.76,2.29115619]
[1749397692258,0.26692746,652.08,651.75,2.29115619]
[1749397692861,0.26692746,652.08,651.72,2.29115619]
[1749397693063,0.26692746,652.08,651.7,2.29115619]
[1749397693264,0.26692746,652.08,651.71,2.29115619]
[1749397693663,0.26692746,652.08,651.7,2.29115619]
[1749397693867,1.094,652.07,651.7,2.29115619]
[1749397694264,1.094,652.07,651.71,2.29115619]
[1749397694464,1.094,652.07,651.61,2.29115619]
[1749397694666,1.094,652.07,651.62,2.29115619]
[1749397695169,1.094,652.07,651.61,2.29115619]
[1749397695368,1.094,652.07,651.62,2.29115619]
[1749397695868,1.094,652.07,651.61,2.29115619]
[1749397696370,1.094,652.07,651.62,2.29115619]
[1749397696571,1.094,652.07,651.61,2.29115619]
[1749397700473,1.094,652.07,651.63,2.29115619]
[1749397701271,1.094,652.07,651.17,0.2668947]
[1749397701272,1.094,652.07,651.64,2.29115619]
[1749397701677,1.094,652.07,651.63,2.29115619]
[1749397701873,1.094,652.07,651.65,2.29115619]
[1749397702773,1.094,652.07,651.66,2.29115619]
[1749397704276,1.094,652.07,651.78,2.29115619]
[1749397709378,1.094,652.07,651.77,2.29115619]
[1749397710280,1.094,652.07,651.78,2.29115619]
[1749397712982,1.094,652.07,651.74,2.29115619]
[1749397713783,1.094,652.07,651.75,2.29115619]
[1749397714383,1.094,652.07,651.74,2.29115619]
[1749397715186,1.094,652.07,651.73,2.29115619]
[1749397716086,1.094,652.07,651.75,2.29115619]
[1749397716588,0.26692746,652.08,651.75,2.29115619]
[1749397718489,0.26692746,652.08,651.74,2.29115619]
[1749397719189,0.26692746,652.08,651.73,2.29115619]
[1749397719589,1.252,652.07,651.73,2.29115619]
[1749397722886,1.252,652.07,651.75,2.29115619]
[1749397723691,1.252,652.07,651.71,2.29115619]
[1749397724191,1.252,652.07,651.72,2.29115619]
[1749397727992,1.252,652.07,651.73,2.29115619]
[1749397728691,1.252,652.07,651.72,2.29115619]
[1749397728895,1.252,652.07,651.73,2.29115619]
[1749397729494,1.252,652.07,651.71,2.29115619]
[1749397729797,1.252,652.07,651.69,2.29115619]
[1749397730698,1.252,652.07,651.68,2.29115619]
[1749397731199,1.252,652.07,651.67,2.29115619]
[1749397733496,1.252,652.07,651.7,2.29115619]
[1749397733798,1.252,652.07,651.69,2.29115619]
[1749397735898,1.252,652.07,651.7,2.29115619]
[1749397736197,1.252,652.07,651.69,2.29115619]
[1749397737301,1.252,652.07,651.7,2.29115619]
[1749397738600,1.252,652.07,651.65,2.29115619]
[1749397738804,1.252,652.07,651.66,2.29115619]
[1749397739600,1.252,652.07,651.67,2.29115619]
[1749397741206,1.252,652.07,651.59,2.29115619]
[1749397747910,1.252,652.07,651.6,2.29115619]
[1749397748614,1.252,652.07,651.61,2.29115619]
[1749397750917,1.252,652.07,651.72,2.29115619]
[1749397752719,1.252,652.07,651.73,2.29115619]
[1749397754015,1.252,652.07,651.72,2.29115619]
[1749397754517,1.252,652.07,651.73,2.29115619]
[1749397754917,1.252,652.07,651.72,2.29115619]
[1749397757722,1.252,652.07,651.71,2.29115619]
[1749397758623,0.26692746,652.08,651.71,2.29115619]
[1749397760324,0.26692746,652.08,651.73,2.29115619]
[1749397761725,0.26692746,652.08,651.71,2.29115619]
[1749397762123,1.302,652.07,651.71,2.29115619]
[1749397762320,1.302,652.07,651.68,2.29115619]
[1749397762624,1.302,652.07,651.71,2.29115619]
[1749397764121,1.302,652.07,651.69,2.29115619]
[1749397768532,1.302,652.07,651.68,2.29115619]
[1749397771231,1.302,652.07,651.63,2.29115619]
[1749397771734,1.302,652.07,651.64,2.29115619]
[1749397772335,1.302,652.07,651.66,2.29115619]
[1749397776332,1.302,652.07,651.65,2.29115619]
[1749397776532,1.302,652.07,651.63,2.29115619]
[1749397776730,1.302,652.07,651.62,2.29115619]
[1749397778437,1.302,652.07,651.63,2.29115619]
[1749397780234,1.302,652.07,651.64,2.29115619]
[1749397780541,1.302,652.07,651.58,2.29115619]
[1749397781133,1.302,652.07,651.61,2.29115619]
[1749397782641,1.302,652.07,651.62,2.29115619]
[1749397784541,1.302,652.07,651.61,2.29115619]
[1749397784742,1.302,652.07,651.62,2.29115619]
[1749397786238,1.302,652.07,651.6,2.29115619]
[1749397786442,1.302,652.07,651.59,2.29115619]
[1749397787242,1.302,652.07,651.58,2.29115619]
[1749397789841,1.302,652.07,651.56,2.29115619]
[1749397790140,1.302,652.07,651.5,2.29115619]
[1749397790341,1.302,652.07,651.52,2.29115619]
[1749397792141,1.302,652.07,651.5,2.29115619]
[1749397792743,1.302,652.07,651.49,2.29115619]
[1749397793143,1.302,652.07,651.46,2.29115619]
[1749397793545,1.302,652.07,651.47,2.29115619]
[1749397796544,1.302,652.07,651.46,2.29115619]
[1749397797544,1.302,652.07,651.47,2.29115619]
[1749397798152,1.302,652.07,651.53,2.29115619]
[1749397801950,1.302,652.07,651.12,0.30716304]
[1749397801951,1.302,652.07,651.56,2.29115619]
[1749397802154,0.26699094,651.94,651.56,2.29115619]
[1749397802455,0.26699094,651.94,651.55,2.29115619]
[1749397802754,0.26699094,651.94,651.57,2.29115619]
[1749397802950,0.26699094,651.94,651.59,2.29115619]
[1749397804055,0.26699094,651.94,651.6,2.29115619]
[1749397804254,0.26699094,651.94,651.58,2.29115619]
[1749397807252,0.26699094,651.94,651.59,2.29115619]
[1749397810251,0.26699094,651.94,651.56,2.29115619]
[1749397810452,0.26699094,651.94,651.57,2.29115619]
[1749397810653,0.26699094,651.94,651.56,2.29115619]
[1749397811056,0.26699094,651.94,651.57,2.29115619]
[1749397813257,0.26699094,651.94,651.55,2.29115619]
[1749397813854,0.26699094,651.94,651.52,2.29115619]
[1749397814154,0.26699094,651.94,651.49,2.29115619]
[1749397814355,0.26699094,651.94,651.48,2.29115619]
[1749397814859,0.26699094,651.94,651.47,2.29115619]
[1749397816254,0.26699094,651.94,651.46,2.29115619]
[1749397817155,0.26699094,651.94,651.48,2.29115619]
[1749397818261,0.26699094,651.94,651.47,2.29115619]
[1749397819158,0.26699094,651.94,651.48,2.29115619]
[1749397821259,0.26699094,651.94,651.47,2.29115619]
[1749397822157,1.084,651.93,651.47,2.29115619]
[1749397822459,1.084,651.93,651.44,2.29115619]
[1749397823558,1.084,651.93,651.45,2.29115619]
[1749397823959,1.084,651.93,651.23,2.29115619]
[1749397824160,1.084,651.93,651.17,2.29115619]
[1749397824562,1.084,651.93,651.16,2.29115619]
[1749397825064,1.084,651.93,651.15,2.29115619]
[1749397826362,1.084,651.93,651.14,2.29115619]
[1749397827270,2.13406904,651.93,651.13,2.29115619]
[1749397827467,1.05006904,651.92,651.13,2.29115619]
[1749397827869,1.084,651.93,651.14,2.29115619]
[1749397829271,1.084,651.93,651.13,2.29115619]
[1749397832274,1.084,651.93,651.14,2.29115619]
[1749397833875,1.084,651.93,651.28,2.29115619]
[1749397834073,1.084,651.93,651.34,2.29115619]
[1749397835677,1.084,651.93,651.28,2.29115619]
[1749397842282,1.084,651.93,651.29,2.29115619]
[1749397845587,1.084,651.93,651.36,2.29115619]
[1749397854490,1.084,651.93,651.37,2.29115619]
[1749397854890,1.084,651.93,651.36,2.29115619]
[1749397855589,1.084,651.93,651.37,2.29115619]
[1749397856390,1.084,651.93,651.36,2.29115619]
[1749397856590,1.084,651.93,651.12,0.30716304]
[1749397856591,1.084,651.93,651.37,2.29115619]
[1749397859188,1.084,651.93,651.12,0.30716304]
[1749397859189,1.084,651.93,651.25,2.29115619]
[1749397859488,1.084,651.93,651.24,2.29115619]
[1749397859993,1.084,651.93,651.25,2.29115619]
[1749397861591,1.084,651.93,651.23,2.29115619]
[1749397862794,1.084,651.93,651.24,2.29115619]
[1749397862992,1.084,651.93,651.23,2.29115619]
[1749397863591,2.14372519,651.93,651.23,2.29115619]
[1749397863898,1.05972519,651.92,651.24,2.29115619]
[1749397864292,1.084,651.93,651.24,2.29115619]
[1749397865794,1.084,651.93,651.25,2.29115619]
[1749397866191,1.084,651.93,651.24,2.29115619]
[1749397866391,1.084,651.93,651.25,2.29115619]
[1749397867893,1.084,651.93,651.26,2.29115619]
[1749397868494,1.084,651.93,651.12,0.30716304]
[1749397868495,1.084,651.93,651.25,2.29115619]
[1749397868998,1.084,651.93,651.31,2.29115619]
[1749397869194,0.26699094,651.94,651.32,2.29115619]
[1749397870100,0.26699094,651.94,651.31,2.29115619]
[1749397870399,0.26699094,651.94,651.32,2.29115619]
[1749397870599,0.26699094,651.94,651.31,2.29115619]
[1749397871097,0.26699094,651.94,651.27,2.29115619]
[1749397871600,0.26699094,651.94,651.29,2.29115619]
[1749397872302,0.26699094,651.94,651.3,2.29115619]
[1749397872601,1.207,651.93,651.3,2.29115619]
[1749397873699,1.207,651.93,651.31,2.29115619]
[1749397873898,1.207,651.93,651.3,2.29115619]
[1749397874701,1.207,651.93,651.29,2.29115619]
[1749397875306,1.207,651.93,651.3,2.29115619]
[1749397875506,1.207,651.93,651.29,2.29115619]
[1749397875806,1.207,651.93,651.3,2.29115619]
[1749397876303,1.207,651.93,651.28,2.29115619]
[1749397877306,2.26672519,651.93,651.28,2.29115619]
[1749397878106,1.05972519,651.92,651.28,2.29115619]
[1749397878305,2.26672519,651.93,651.3,2.29115619]
[1749397878505,2.26672519,651.93,651.29,2.29115619]
[1749397879307,2.26672519,651.93,651.3,2.29115619]
[1749397879811,2.26672519,651.93,651.29,2.29115619]
[1749397880205,2.26672519,651.93,651.3,2.29115619]
[1749397880406,1.05972519,651.92,651.3,2.29115619]
[1749397880611,2.26672519,651.93,651.3,2.29115619]
[1749397880808,2.26672519,651.93,651.32,2.29115619]
[1749397881512,2.26672519,651.93,651.31,2.29115619]
[1749397882411,1.05972519,651.92,651.26,2.29115619]
[1749397882612,1.05972519,651.91,651.26,2.29115619]
[1749397882911,1.05972519,651.9,651.26,2.29115619]
[1749397883108,1.05972519,651.89,651.26,2.29115619]
[1749397883307,1.05972519,651.88,651.26,2.29115619]
[1749397883512,1.05972519,651.92,651.26,2.29115619]
[1749397883714,1.05972519,651.91,651.26,2.29115619]
[1749397883909,1.05972519,651.9,651.26,2.29115619]
[1749397884210,1.05972519,651.89,651.27,2.29115619]
[1749397884409,1.05972519,651.92,651.26,2.29115619]
[1749397884607,1.207,651.93,651.26,2.29115619]
[1749397884608,1.05972519,651.91,651.26,2.29115619]
[1749397884813,1.05972519,651.9,651.26,2.29115619]
[1749397885012,1.05972519,651.89,651.26,2.29115619]
[1749397885210,1.05972519,651.92,651.26,2.29115619]
[1749397885510,1.05972519,651.91,651.25,2.29115619]
[1749397885714,1.05972519,651.9,651.25,2.29115619]
[1749397886013,1.05972519,651.92,651.27,2.29115619]
[1749397886213,1.05972519,651.91,651.28,2.29115619]
[1749397886513,1.05972519,651.9,651.23,2.29115619]
[1749397886814,1.05972519,651.89,651.23,2.29115619]
[1749397887010,1.05972519,651.88,651.23,2.29115619]
[1749397887213,1.05972519,651.87,651.22,2.29115619]
[1749397887509,1.05972519,651.87,650.76,0.26711288]
[1749397887510,1.05972519,651.91,651.21,2.29115619]
[1749397887710,1.05972519,651.9,651.21,2.29115619]
[1749397887913,1.05972519,651.89,651.21,2.29115619]
[1749397888113,1.05972519,651.88,651.21,2.29115619]
[1749397888311,1.05972519,651.92,651.21,2.29115619]
[1749397888510,1.05972519,651.91,651.21,2.29115619]
[1749397888713,1.05972519,651.9,651.21,2.29115619]
[1749397888911,1.05972519,651.89,651.21,2.29115619]
[1749397889109,1.05972519,651.92,651.21,2.29115619]
[1749397889414,1.05972519,651.91,651.15,2.29115619]
[1749397889709,1.05972519,651.9,651.15,2.29115619]
[1749397889910,1.05972519,651.89,651.15,2.29115619]
[1749397890110,1.05972519,651.92,651.15,2.29115619]
[1749397890309,1.05972519,651.91,651.15,2.29115619]
[1749397890614,1.05972519,651.9,651.15,2.29115619]
[1749397890809,1.05972519,651.89,651.15,2.29115619]
[1749397891114,1.05972519,651.92,651.15,2.29115619]
[1749397891310,1.05972519,651.91,651.15,2.29115619]
[1749397891612,1.05972519,651.9,651.15,2.29115619]
[1749397891813,1.05972519,651.92,651.15,2.29115619]
[1749397892012,1.05972519,651.91,651.15,2.29115619]
[1749397892214,1.05972519,651.92,651.15,2.29115619]
[1749397892414,1.05972519,651.91,651.15,2.29115619]
[1749397892714,1.05972519,651.92,651.15,2.29115619]
[1749397892914,1.05972519,651.91,651.15,2.29115619]
[1749397893209,1.05972519,651.92,651.15,2.29115619]
[1749397894109,1.05972519,651.91,651.13,2.29115619]
[1749397894313,1.05972519,651.9,651.13,2.29115619]
[1749397894515,1.05972519,651.91,651.13,2.29115619]
[1749397895112,1.05972519,651.9,651.13,2.29115619]
[1749397895317,2.79308509,651.92,651.13,2.29115619]
[1749397895613,1.05972519,651.91,651.06,2.29115619]
[1749397895817,1.05972519,651.9,651.05,2.29115619]
[1749397896012,1.05972519,651.89,651.05,2.29115619]
[1749397896212,1.05972519,651.9,651.06,2.29115619]
[1749397896416,1.05972519,651.89,651.06,2.29115619]
[1749397896717,1.05972519,651.9,651.05,2.29115619]
[1749397896917,1.05972519,651.89,651.05,2.29115619]
[1749397897216,1.05972519,651.92,651.05,2.29115619]
[1749397897416,1.05972519,651.91,651.05,2.29115619]
[1749397897617,1.05972519,651.9,651.05,2.29115619]
[1749397897811,1.05972519,651.92,651.05,2.29115619]
[1749397898014,1.05972519,651.91,651.05,2.29115619]
[1749397898214,1.05972519,651.9,651.0,2.29115619]
[1749397898518,1.05972519,651.89,650.99,2.29115619]
[1749397898714,1.05972519,651.88,650.99,2.29115619]
[1749397898915,1.05972519,651.87,650.99,2.29115619]
[1749397899113,1.05972519,651.92,651.01,2.29115619]
[1749397899315,1.05972519,651.91,651.01,2.29115619]
[1749397899612,1.05972519,651.9,651.0,2.29115619]
[1749397899817,1.05972519,651.89,650.99,2.29115619]
[1749397900011,1.05972519,651.88,650.99,2.29115619]
[1749397900214,1.05972519,651.87,650.99,2.29115619]
[1749397900415,1.05972519,651.86,650.92,2.29115619]
[1749397900615,1.1482694,651.82,650.9,2.29115619]
[1749397900815,1.05972519,651.81,650.9,2.29115619]
[1749397901018,1.05972519,651.8,650.9,2.29115619]
[1749397901219,1.05972519,651.79,650.89,2.29115619]
[1749397901419,2.79184349,651.8,650.88,2.29115619]
[1749397901718,1.05972519,651.79,650.88,2.29115619]
[1749397902016,1.05972519,651.81,650.88,2.29115619]
[1749397902219,1.05972519,651.8,650.88,2.29115619]
[1749397902715,1.5787519,651.81,650.87,2.29115619]
[1749397902915,1.1482694,651.83,650.57,0.26717953]
[1749397902916,1.05972519,651.82,650.89,2.29115619]
[1749397903120,2.79089998,651.82,650.89,2.29115619]
[1749397903414,1.73117479,651.81,650.89,2.29115619]
[1749397903620,2.27203111,651.81,650.88,2.29115619]
[1749397903819,1.57859406,651.8,650.88,2.29115619]
[1749397904116,0.51886887,651.82,650.88,2.29115619]
[1749397904320,1.1482694,651.83,650.88,2.29115619]
[1749397904522,1.1482694,651.84,650.87,2.29115619]
[1749397904821,1.1482694,651.85,650.84,2.29115619]
[1749397905416,2.68908979,651.86,650.82,2.29115619]
[1749397905716,2.2714106,651.85,650.76,2.29115619]
[1749397905917,1.57855959,651.84,650.78,2.29115619]
[1749397906221,3.38096902,651.92,650.78,2.29115619]
[1749397906418,1.5785595,651.91,650.78,2.29115619]
[1749397906718,3.89977017,651.92,650.79,2.29115619]
[1749397907021,3.89977156,651.91,650.79,2.29115619]
[1749397907216,1.207,651.93,650.79,2.29115619]
[1749397907217,2.16926473,651.9,650.79,2.29115619]
[1749397907421,2.17026461,651.89,650.79,2.29115619]
[1749397907618,1.05972519,651.88,650.78,2.29115619]
[1749397907817,1.05972519,651.92,651.05,2.29115619]
[1749397908016,1.05972519,651.92,651.06,2.29115619]
[1749397908216,1.05972519,651.92,651.07,2.29115619]
[1749397908417,1.207,651.93,651.05,2.29115619]
[1749397908619,1.207,651.93,651.08,2.29115619]
[1749397909419,1.207,651.93,651.09,2.29115619]
[1749397910722,1.207,651.93,651.14,2.29115619]
[1749397911517,1.207,651.93,651.15,2.29115619]
[1749397913019,2.26672519,651.93,651.15,2.29115619]
[1749397913226,1.05972519,651.92,651.15,2.29115619]
[1749397913625,1.207,651.93,651.15,2.29115619]
[1749397914922,1.207,651.93,651.14,2.29115619]
[1749397915525,1.207,651.93,651.15,2.29115619]
[1749397915822,1.207,651.93,651.14,2.29115619]
[1749397916321,2.26532145,651.93,651.14,2.29115619]
[1749397916526,1.05832145,651.92,651.09,2.29115619]
[1749397916826,1.207,651.93,651.09,2.29115619]
[1749397917728,1.207,651.93,651.1,2.29115619]
[1749397918130,1.207,651.93,651.08,2.29115619]
[1749397918430,1.207,651.93,651.1,2.29115619]
[1749397920632,1.32531239,651.94,651.1,2.29115619]
[1749397920834,0.26699094,651.94,651.07,2.29115619]
[1749397921631,0.26699094,651.94,651.08,2.29115619]
[1749397923532,0.96,651.93,651.08,2.29115619]
[1749397926443,0.96,651.93,651.11,2.29115619]
[1749397928040,2.01832145,651.93,651.12,2.29115619]
[1749397928240,1.05832145,651.92,651.12,2.29115619]
[1749397928641,0.96,651.93,651.13,2.29115619]
[1749397929445,0.96,651.93,651.11,2.29115619]
[1749397930741,0.96,651.93,651.15,2.29115619]
[1749397933144,0.96,651.93,651.14,2.29115619]
[1749397933650,0.96,651.93,651.15,2.29115619]
[1749397934346,0.96,651.93,651.14,2.29115619]
[1749397934545,2.01832145,651.93,651.15,2.29115619]
[1749397934747,1.05832145,651.92,651.16,2.29115619]
[1749397935248,1.05832145,651.92,650.57,0.26717953]
[1749397935249,0.96,651.93,651.15,2.29115619]
[1749397935551,0.26699094,651.94,651.16,2.29115619]
[1749397936746,3.063736,651.94,651.16,2.29115619]
[1749397936948,2.79675143,651.93,651.16,2.29115619]
[1749397937145,0.52070176,651.92,651.16,2.29115619]
[1749397937346,1.05832145,651.93,651.16,2.29115619]
[1749397937645,0.26699094,651.94,651.16,2.29115619]
[1749397938146,0.26699094,651.94,651.17,2.29115619]
[1749397938649,1.272,651.93,651.17,2.29115619]
[1749397938848,4.06902142,651.93,651.17,2.29115619]
[1749397939048,2.79723906,651.92,651.17,2.29115619]
[1749397939249,2.2764234,651.92,651.17,2.29115619]
[1749397939448,1.05832145,651.92,651.2,2.29115619]
[1749397939952,2.79723906,651.92,651.2,2.29115619]
[1749397940251,1.73891761,651.91,651.2,2.29115619]
[1749397940451,0.52081566,651.91,651.2,2.29115619]
[1749397940651,2.2764209,651.92,651.2,2.29115619]
[1749397940853,0.52081698,651.91,651.2,2.29115619]
[1749397941051,1.57913843,651.92,651.2,2.29115619]
[1749397941352,2.79724299,651.92,651.2,2.29115619]
[1749397941551,1.73892154,651.91,651.11,2.29115619]
[1749397941753,1.57915206,651.91,651.11,2.29115619]
[1749397941954,0.52081698,651.91,651.04,2.29115619]
[1749397942555,1.05833508,651.92,651.04,2.29115619]
[1749397943051,1.05833508,651.92,651.05,2.29115619]
[1749397943552,2.79647782,651.92,651.05,2.29115619]
[1749397943754,1.73814274,651.91,651.05,2.29115619]
[1749397943954,0.52069819,651.91,651.05,2.29115619]
[1749397944451,1.05833508,651.92,651.05,2.29115619]
[1749397944654,1.21753059,651.92,651.05,2.29115619]
[1749397944854,1.57906888,651.92,651.05,2.29115619]
[1749397945049,2.79659669,651.92,651.05,2.29115619]
[1749397945252,0.5207338,651.91,651.05,2.29115619]
[1749397945749,0.5207345,651.91,651.05,2.29115619]
[1749397946149,0.5207338,651.91,651.05,2.29115619]
[1749397946349,2.79659669,651.92,651.05,2.29115619]
[1749397946552,1.73826161,651.91,651.05,2.29115619]
[1749397946854,0.5207338,651.91,651.05,2.29115619]
[1749397947051,1.57906888,651.92,651.05,2.29115619]
[1749397947253,2.79666076,651.92,651.05,2.29115619]
[1749397947459,1.73832568,651.91,651.05,2.29115619]
[1749397947754,0.5207338,651.91,651.04,2.29115619]
[1749397947953,1.05833508,651.92,651.04,2.29115619]
[1749397948154,1.73828556,651.92,651.01,2.29115619]
[1749397948353,1.05833508,651.92,651.01,2.29115619]
[1749397948654,2.27586015,651.92,651.01,2.29115619]
[1749397948853,1.73828556,651.91,651.01,2.29115619]
[1749397949052,0.52076049,651.91,651.01,2.29115619]
[1749397949556,0.52077369,651.91,651.02,2.29115619]
[1749397949759,1.05833508,651.92,651.01,2.29115619]
[1749397949960,1.272,651.93,651.01,2.29115619]
[1749397950164,1.272,651.93,651.02,2.29115619]
[1749397950856,1.272,651.93,651.04,2.29115619]
[1749397951462,1.272,651.93,651.05,2.29115619]
[1749397951757,1.272,651.93,651.06,2.29115619]
[1749397951960,1.272,651.93,651.1,2.29115619]
[1749397952559,1.272,651.93,651.11,2.29115619]
[1749397952761,2.85102479,651.93,651.11,2.29115619]
[1749397952962,1.05833508,651.92,651.11,2.29115619]
[1749397953158,1.05833508,651.92,651.13,2.29115619]
[1749397953462,1.272,651.93,651.13,2.29115619]
[1749397953659,1.272,651.93,651.14,2.29115619]
[1749397954760,1.272,651.93,651.13,2.29115619]
[1749397954960,1.272,651.93,651.14,2.29115619]
[1749397955860,1.272,651.93,651.15,2.29115619]
[1749397956063,1.272,651.93,651.16,2.29115619]
[1749397956568,1.272,651.93,651.15,2.29115619]
[1749397956759,1.272,651.93,651.16,2.29115619]
[1749397957961,1.272,651.93,651.25,2.29115619]
[1749397958463,1.272,651.93,651.24,2.29115619]
[1749397959464,1.272,651.93,651.26,2.29115619]
[1749397959870,2.33033508,651.93,651.26,2.29115619]
[1749397960065,1.05833508,651.92,651.26,2.29115619]
[1749397960261,1.272,651.93,651.27,2.29115619]
[1749397960866,1.272,651.93,651.29,2.29115619]
[1749397961360,1.272,651.93,651.3,2.29115619]
[1749397962668,1.272,651.93,651.31,2.29115619]
[1749397963068,1.272,651.93,651.32,2.29115619]
[1749397963469,1.272,651.93,651.33,2.29115619]
[1749397964569,1.272,651.93,651.34,2.29115619]
[1749397964570,2.33033508,651.93,651.34,2.29115619]
[1749397964869,1.05833508,651.92,651.34,2.29115619]
[1749397965270,1.05833508,651.92,651.29,2.29115619]
[1749397965471,1.272,651.93,651.3,2.29115619]
[1749397966366,1.272,651.93,651.32,2.29115619]
[1749397966767,1.272,651.93,651.31,2.29115619]
[1749397966967,1.272,651.93,651.32,2.29115619]
[1749397967372,2.33033508,651.93,651.32,2.29115619]
[1749397967568,1.05833508,651.92,651.33,2.29115619]
[1749397968671,2.33033508,651.93,651.33,2.29115619]
[1749397969066,1.05833508,651.92,651.33,2.29115619]
[1749397969267,1.272,651.93,651.33,2.29115619]
[1749397969268,2.33033508,651.93,651.33,2.29115619]
[1749397970173,1.05833508,651.92,651.3,2.29115619]
[1749397970970,1.05833508,651.93,651.3,2.29115619]
[1749397971170,1.05833508,651.92,651.31,2.29115619]
[1749397971471,0.26699094,651.94,651.31,2.29115619]
[1749397971472,1.05833508,651.93,651.31,2.29115619]
[1749397971677,1.05833508,651.93,651.3,2.29115619]
[1749397972077,1.05833508,651.93,651.31,2.29115619]
[1749397974374,0.979,651.92,651.31,2.29115619]
[1749397975079,2.03733508,651.92,651.35,2.29115619]
[1749397975276,1.05833508,651.91,651.35,2.29115619]
[1749397975781,0.979,651.92,651.35,2.29115619]
[1749397979282,2.03878797,651.92,651.35,2.29115619]
[1749397979483,1.05978797,651.91,651.35,2.29115619]
[1749397979776,0.979,651.92,651.35,2.29115619]
[1749397980180,0.979,651.92,651.37,2.29115619]
[1749397983787,2.03878797,651.92,651.37,2.29115619]
[1749397983983,1.05978797,651.91,651.37,2.29115619]
[1749397984290,0.979,651.92,651.37,2.29115619]
[1749397985690,0.979,651.92,651.36,2.29115619]
[1749397986585,0.979,651.92,651.37,2.29115619]
[1749397987191,0.979,651.92,651.36,2.29115619]
[1749397987994,2.03878797,651.92,651.36,2.29115619]
[1749397988193,1.05978797,651.91,651.36,2.29115619]
[1749397988793,0.979,651.92,651.36,2.29115619]
[1749397989090,0.979,651.92,651.37,2.29115619]
[1749397989394,0.979,651.92,651.35,2.29115619]
[1749397990395,2.03878797,651.92,651.35,2.29115619]
[1749397990694,1.05978797,651.91,651.35,2.29115619]
[1749397990891,0.979,651.92,651.35,2.29115619]
[1749397991391,0.979,651.92,651.34,2.29115619]
[1749397992197,2.03878797,651.92,651.34,2.29115619]
[1749397992394,1.05978797,651.91,651.35,2.29115619]
[1749397992592,1.05978797,651.91,651.34,2.29115619]
[1749397992892,0.979,651.92,651.33,2.29115619]
[1749397994200,2.03878797,651.92,651.34,2.29115619]
[1749397994396,1.05978797,651.91,651.34,2.29115619]
[1749397994900,0.979,651.92,651.34,2.29115619]
[1749397995199,0.979,651.92,651.3,2.29115619]
[1749397995500,0.979,651.92,651.31,2.29115619]
[1749397996802,2.03878797,651.92,651.3,2.29115619]
[1749397997097,1.05978797,651.91,651.31,2.29115619]
[1749397997700,0.979,651.92,651.31,2.29115619]
[1749397997899,2.03878797,651.92,651.31,2.29115619]
[1749397998099,1.05978797,651.91,651.31,2.29115619]
[1749397998298,1.05978797,651.91,651.3,2.29115619]
[1749397998505,1.05978797,651.93,651.31,2.29115619]
[1749397998701,1.05978797,651.92,651.31,2.29115619]
[1749397999004,1.05978797,651.93,651.32,2.29115619]
[1749397999204,1.05978797,651.92,651.32,2.29115619]
[1749397999604,1.05978797,651.93,651.32,2.29115619]
[1749397999804,1.05978797,651.92,651.31,2.29115619]
[1749398000004,1.05978797,651.93,651.31,2.29115619]
[1749398000304,1.05978797,651.92,651.31,2.29115619]
[1749398000605,1.05978797,651.91,651.28,2.29115619]
[1749398000804,1.05978797,651.9,651.28,2.29115619]
[1749398001005,1.241,651.91,651.28,2.29115619]
[1749398001300,1.05978797,651.9,651.26,2.29115619]
[1749398001500,1.05978797,651.89,651.23,2.29115619]
[1749398001698,1.05978797,651.88,651.23,2.29115619]
[1749398001901,1.05978797,651.87,651.23,2.29115619]
[1749398002199,1.05978797,651.86,651.24,2.29115619]
[1749398002399,0.2671057,651.72,651.21,2.29115619]
[1749398005107,0.2671057,651.72,651.23,2.29115619]
[1749398006109,0.2671057,651.72,651.19,2.29115619]